{"text_format":"1","workbook":"xlsx","n_sheets":7,"sheets":["0. Anleitung","1. Basisdaten","2. Daten GuV","3. Daten Mitarbeiter","4. Umlage Overhead","5. Ergebnisse","DropDowns"],"not_rendered":{"charts":0,"images":1,"macros":1,"external_links":0,"defined_names":8,"comments":0,"pivot_tables":0},"unopened":[],"bounds":{"document_bytes":16777216,"sheet_cells":100000,"rows_first":2000,"rows_last":500,"rows_between":2000,"halvings":0,"cell_chars":16384,"cell_head_chars":4096},"cells_cut":0,"cells_raw":0,"read":"whole","date_system":"1900"}

{"sheet":"0. Anleitung","index":0,"n_rows":28,"n_cols":3,"rows_kept":28,"cut":false,"hidden":false,"merged":[]}
["Anleitung und benötigte Daten"]
[]
["Welche Daten und Informationen benötigen Sie für die Stundensatz-Kalkulation?"]
[]
[null,"1.","Gewinn- und Verlustrechnung oder Einnahmen-/Ausgabenrechnung des letzten vollständig abgeschlossenen Jahres."]
[null,null,"Beabsichtigen Sie die Kalkulation auf Profit-Center-Ebene durchzuführen, benötigen Sie diese Daten auf Profit-Center-Ebene."]
[null,null,"Sofern keine Ist-Daten vorliegen, können auch Plan-Daten verwendet werden."]
[null,null,"-> die Daten erhalten Sie von Ihrer Buchhaltung oder ihrem Steuerberater."]
[]
[null,"2.","Daten der beschäftigten Mitarbeiter (Name, Lehrling ja/nein, Wochenstunden, Bruttobezug/Dienstgeberaufwand pro Jahr, Tätigkeit/Position)"]
[null,null,"-> die Daten erhalten Sie von Ihrer Lohnverrechnung."]
[]
["Gehen Sie bei der Verwendung des Kalkulationstools wie folgt vor:"]
[]
[null,"1.","Stellen Sie die benötigten Daten (siehe oben) zusammen."]
[]
[null,"2.","Erfassen Sie die Grunddaten Ihres Betriebes im Blatt \"1. Basisdaten\"."]
[]
[null,"3.","Erfassen Sie die Kostenstruktur in Ihrem Unternehmen im Blatt \"2. Daten GuV\"."]
[]
[null,"4.","Erfassen Sie die Daten Ihrer Mitarbeiter im Blatt \"3. Daten Mitarbeiter\""]
[null,null,"Sofern Sie eine Personengesellschaft (Einzelunternehmen, OG, KG) betreiben, wird der im Blatt \"2. Daten GuV\" erfasste Unternehmerlohn"]
[null,null,"automatisch inklusive anteiliger Sozialversicherungsbeiträge und Einkommensteuer mit in die Mitarbeiterliste übernommen."]
[]
[null,"5.","Legen Sie im Blatt \"4. Umlage Overhead\" die Umlage von Gemeinkosten auf die operativ tätigen Profit-Center fest."]
[null,null,"Bei Kalkulation auf Gesamtunternehmensebene ist in diesem Blatt keine Eingabe notwendig."]
[]
[null,"6.","Im Blatt \"5. Ergebnisse\" sind der \"PLAN-Verrechungsgrad\", geplante \"Rabatte & Erlösschmälerungen\" der \"Wagnis/Gewinn-Zuschlag\" sowie der Umsatzsteuer-Satz in % einzutragen."]

{"sheet":"1. Basisdaten","index":1,"n_rows":22,"n_cols":8,"rows_kept":22,"cut":false,"hidden":false,"merged":[[5,2,5,3],[7,2,7,3],[3,2,3,5],[11,2,11,3],[9,2,9,3]]}
["Grunddaten & Einstellungen"]
[]
[null,null,null,null,null,null,null,"Informationen"]
[null,"Firma:","Max Mustermann GmbH",null,null,null,null,"Firmenwortlaut oder Kurzbezeichnung eintragen"]
[]
[null,"Rechtsform:","Einzelunternehmen",null,null,null,null,"Auswahl der Rechtsform (Einzelunternehmen, OG, KG, GmbH…)"]
[]
[null,"Datenart:","IST-Daten",null,null,null,null,"Auswahl der Datenart: Wenn Sie anhand von vergangenen Daten kalkuliern möchten, wählen Sie \"IST-Daten\"; wenn Sie mit Plan-Daten kalkulieren: \"Plan-Daten\""]
[]
[null,"Periode:",2022,null,null,null,null,"Periode (Jahr/Wirtschaftsjahr) eintragen (z.B. 2023 oder 2023/24)"]
[]
[null,"Detaillierungsgrad:","Gesamtunternehmen",null,null,null,null,"Über Drow-Down-Feld Detaillierungsgrad auswählen"]
[]
[null,null,"Mechanik","Karosserie","Lackiererei","Handel"]
[null,"Profit-Center:","ja","ja","nein","nein",null,"Für relevante Profit-Center \"ja\", für nicht relevante \"nein\" auswählen"]
[]
[null,"IST-Stundensatz:",120,165,0,0,null,"Tragen Sie hier Ihren aktuell verrechneten Regie-Stundensatz in EUR exkl. Umsatzsteuer ein."]
[]
[]
[]
[]
[null,"IST-Stundensatz:",120,null,null,null,null,"Tragen Sie hier Ihren aktuell verrechneten Verkaufs-Stundensatz in EUR exkl. Umsatzsteuer ein."]

{"sheet":"2. Daten GuV","index":2,"n_rows":40,"n_cols":25,"rows_kept":40,"cut":false,"hidden":false,"merged":[[23,13,23,16],[17,13,17,16],[8,13,10,13],[25,13,26,16],[21,13,22,16],[15,13,15,16],[14,13,14,16],[13,13,13,16],[12,13,12,16],[16,13,16,16],[18,13,18,16],[19,13,19,16],[20,13,20,16]]}
["\"0\" wenn ausgeblendet",null,null,null,null,{"$f":"IF('1. Basisdaten'!$C$12=DropDowns!$F$3,\"ja\",\"nein\")","v":"ja"},{"$f":"IF('1. Basisdaten'!$C$12=DropDowns!$F$4,\"ja\",\"nein\")","v":"nein"},{"$f":"IF('1. Basisdaten'!$C$12=DropDowns!$F$3,\"nein\",'1. Basisdaten'!C15)","v":"nein"},{"$f":"IF('1. Basisdaten'!$C$12=DropDowns!$F$3,\"nein\",'1. Basisdaten'!D15)","v":"nein"},{"$f":"IF('1. Basisdaten'!$C$12=DropDowns!$F$3,\"nein\",'1. Basisdaten'!E15)","v":"nein"},{"$f":"IF('1. Basisdaten'!$C$12=DropDowns!$F$3,\"nein\",'1. Basisdaten'!F15)","v":"nein"},{"$f":"IF('1. Basisdaten'!$C$12=DropDowns!$F$3,\"nein\",\"ja\")","v":"nein"}]
[]
[]
[]
[null,null,"Erfassung Daten Gewinn- u. Verlustrechnung  &  Aufschläge Material/Fremdleistungen"]
[]
[]
[]
[null,null,null,null,"Datenart",{"$f":"'1. Basisdaten'!$C$8","v":"IST-Daten"},{"$f":"'1. Basisdaten'!$C$8","v":"IST-Daten"},null,null,null,null,null,null,"Anmerkungen"]
[null,null,null,null,"Periode",{"$f":"'1. Basisdaten'!$C$10","v":2022},{"$f":"'1. Basisdaten'!$C$10","v":2022}]
[null,null,null,null,"Bereich","Gesamtunternehmen","Gesamtunternehmen",{"$f":"'1. Basisdaten'!C14","v":"Mechanik"},{"$f":"'1. Basisdaten'!D14","v":"Karosserie"},{"$f":"'1. Basisdaten'!E14","v":"Lackiererei"},{"$f":"'1. Basisdaten'!F14","v":"Handel"},"Overhead",null,null,null,null,null,null,null,"Beispieldaten"]
[null,null,null,null,null,null,null,null,null,null,null,null,null,null,null,null,null,null,null,"Gesamtunternehmen",{"$f":"G11","v":"Gesamtunternehmen"},{"$f":"H11","v":"Mechanik"},"Karosserie","Lackiererei","Handel"]
[1,null,null,null,"Umsatzerlöse",null,null,null,null,null,null,{"$f":"G13-SUM(H13:K13)","v":0},null,"Umsatzerlöse inkl. Veränderung d. Bestandes an (un-)fertigen Erzeugnisse, jedoch exklusive sonstiger betriebl. Erträge. ",null,null,null,null,null,2250000,{"$f":"SUM(V13:Y13)","v":3250000},1250000,1000000,0,1000000]
[1,null,null,null,"Materialaufwand",null,null,null,null,null,null,{"$f":"G14-SUM(H14:K14)","v":0},null,"Materialaufwendungen inkl. Bezugskosten u.ä. Aufwendungen",null,null,null,null,null,620000,{"$f":"SUM(V14:Y14)","v":1470000},300000,320000,null,850000]
[1,null,null,null,"Aufwand f. bezogene Leistungen",null,null,null,null,null,null,0,null,"Fremdleistungen (z.B. Aufwand aus Leistungen von in Sub beauftragten Lackiererei)",null,null,null,null,null,205000,205000,100000,105000,null,0]
[1,null,null,null,"Löhne, Gehälter & Geschäftsführerbezüge inkl. Lohnnebenkosten",null,null,null,null,null,null,0,null,"Löhne, Gehälter und Geschäftsführerbezüge inkl. Lohnnebenkosten. Geschäftsführerbezüge sind nur im Falle von Kapitalgesellschaften (AG, GmbH) eintragen - bei Personengesellschaften (Einzelunternehmen, OG, KG) ist der Unternehmerlohn in Zeile 24 zu erfassen. .",null,null,null,null,null,742630,620000,375000,200000,0,45000]
[1,null,null,null,"Sonstiger Personalaufwand",null,null,null,null,null,null,0,null,"Sonstige Personalaufwendungen, die nicht bereits bei der Position oberhalb berücksichtigt wurden.",null,null,null,null,null,3500,3500,2000,1500]
[1,null,null,null,"Sachaufwand",null,null,null,null,null,null,0,null,"Sonstige betr. Aufwendungen wie: Mieten, Leasing, KFZ-Aufwand, Reise-/Fahrtaufwand, Büro-/Verwaltungsaufwand,  Aufwand f. Instandhaltung, Betriebskosten, Werbung, Kommunikation, Rechts-/Beratungsaufwand, Gebühren & Beiträge, Spesen d. Geldverkehrs, Transportaufwand und sonstige laufende Aufwendungen",null,null,null,null,null,500000,535000,250000,250000,0,35000]
[1,null,null,null,"Sonstige betr. Erträge",null,null,null,null,null,null,0,null,"Sonstige betriebe Erträge exkl. außerordentlicher, nicht wiederkehrender Erträge",null,null,null,null,null,0,0]
[1,null,null,null,"Abschreibung f. Abnutzung",null,null,null,null,null,null,0,null,"Abschreibungen das Anlagevermögen und Geringwertige Wirtschaftsgüter",null,null,null,null,null,50000,50000,25000,20000,0,5000]
[1,null,null,null,"Finanzerfolg",null,null,null,null,null,null,0,null,"Zinsen und ähnliche Aufwendungen",null,null,null,null,null,40000,70000,20000,20000,0,30000]
[1,null,null,null,"außerordentliche Aufwendungen",null,null,null,null,null,null,0,null,"Außerordentliche Aufwendungen und Erträge werden in Kalkulation d. Stundensatzes nicht mit berücksichtigt. Hier außerordentliche, nicht nachhaltige Aufwendungen/Erträge eintragen.",null,null,null,null,null,0,0]
[1,null,null,null,"außerordentliche Erträge",null,null,null,null,null,null,0,null,null,null,null,null,null,null,0,{"$f":"SUM(V23:Y23)","v":0}]
[1,null,null,null,{"$f":"IF(OR('1. Basisdaten'!$C$6=DropDowns!$B$6,'1. Basisdaten'!$C$6=DropDowns!$B$7),\"\",\"Unternehmerlohn\")","v":"Unternehmerlohn"},null,null,null,null,null,null,{"$f":"G24-SUM(H24:K24)","v":0},null,{"$f":"IF(E24=\"Unternehmerlohn\",\"Unternehmerlohn ist nur bei Personengesellschaften (Einzelunternehmen, KG, OG) einzutragen.\",\"\")","v":"Unternehmerlohn ist nur bei Personengesellschaften (Einzelunternehmen, KG, OG) einzutragen."},null,null,null,null,null,30000,30000,20000,5000,0,5000]
[]
[1,null,null,null,"ø Aufschlag Material",0.3,0,0.3,0.3,0.3,0.15,null,null,"durchschn. Aufschlag auf Material/Ersatzteile sowie Fremdleistungen (Einstandspreis x Aufschlag = Verkaufspreis netto). Beispiel: Einstandspreis = 100,- x Aufschlag 30% = Netto-Verkaufspreis 130,-",null,null,null,null,null,0.3,{"$f":"'4. Umlage Overhead'!$G$10","v":0},0.3,0.3,0.3,0.15]
[1,null,null,null,"ø Aufschlag bezogene Leistungen",0.1,0,0.1,0.1,0.1,0.1,null,null,null,null,null,null,null,null,0.1,{"$f":"'4. Umlage Overhead'!$G$11","v":0},0.1,0.1,0.1,0.1]
[]
[]
[]
[]
[]
[null,null,null,null,"Umsatz",{"$f":"'3. Daten Mitarbeiter'!$AD$47","v":0},{"$f":"'3. Daten Mitarbeiter'!$AD$47","v":0},{"$f":"'3. Daten Mitarbeiter'!AE47","v":0},{"$f":"'3. Daten Mitarbeiter'!AF47","v":0},{"$f":"'3. Daten Mitarbeiter'!AG47","v":0},{"$f":"'3. Daten Mitarbeiter'!AH47","v":0}]
[null,null,null,null,{"$f":"'3. Daten Mitarbeiter'!Y43","v":0},{"$f":"'3. Daten Mitarbeiter'!$AD$43","v":0},{"$f":"'3. Daten Mitarbeiter'!$AD$43","v":0},{"$f":"'3. Daten Mitarbeiter'!AE43","v":0},{"$f":"'3. Daten Mitarbeiter'!AF43","v":0},{"$f":"'3. Daten Mitarbeiter'!AG43","v":0},{"$f":"'3. Daten Mitarbeiter'!AH43","v":0}]
[null,null,null,null,{"$f":"'3. Daten Mitarbeiter'!Y44","v":0},{"$f":"'3. Daten Mitarbeiter'!$AD$44","v":0},{"$f":"'3. Daten Mitarbeiter'!$AD$44","v":0},{"$f":"'3. Daten Mitarbeiter'!AE44","v":0},{"$f":"'3. Daten Mitarbeiter'!AF44","v":0},{"$f":"'3. Daten Mitarbeiter'!AG44","v":0},{"$f":"'3. Daten Mitarbeiter'!AH44","v":0}]
[null,null,null,null,"WES",{"$f":"F34/(1+F26)","v":0},0,0,0,0,0]
[null,null,null,null,"FL",0,0,0,0,0,0]
[null,null,null,null,"L&G",{"$f":"'3. Daten Mitarbeiter'!$AD$50","v":0},{"$f":"'3. Daten Mitarbeiter'!$AD$50","v":0},{"$f":"'3. Daten Mitarbeiter'!AE50","v":0},{"$f":"'3. Daten Mitarbeiter'!AF50","v":0},{"$f":"'3. Daten Mitarbeiter'!AG50","v":0},{"$f":"'3. Daten Mitarbeiter'!AH50","v":0}]
[]
[null,null,null,null,"direkte Gemeinkosten",{"$f":"F17+F18-F19+F20+F21","v":0},{"$f":"G17+G18-G19+G20+G21","v":0},0,0,0,0]

{"sheet":"3. Daten Mitarbeiter","index":3,"n_rows":60,"n_cols":54,"rows_kept":60,"cut":false,"hidden":false,"merged":[[4,13,4,23],[5,13,5,23],[5,6,5,10],[43,4,43,25]]}
[null,null,null,null,null,null,{"$f":"IF('1. Basisdaten'!$C$12=DropDowns!$F$3,\"nein\",'1. Basisdaten'!C15)","v":"nein"},{"$f":"IF('1. Basisdaten'!$C$12=DropDowns!$F$3,\"nein\",'1. Basisdaten'!D15)","v":"nein"},{"$f":"IF('1. Basisdaten'!$C$12=DropDowns!$F$3,\"nein\",'1. Basisdaten'!E15)","v":"nein"},{"$f":"IF('1. Basisdaten'!$C$12=DropDowns!$F$3,\"nein\",'1. Basisdaten'!F15)","v":"nein"},{"$f":"IF('1. Basisdaten'!$C$12=DropDowns!$F$3,\"nein\",\"ja\")","v":"nein"},{"$f":"K1","v":"nein"},{"$f":"L1","v":"nein"}]
[]
[null,"Erfassung Daten Mitarbeiter"]
[null,null,null,null,null,null,null,null,null,null,null,null,null,null,null,null,null,null,null,null,null,null,null,null,null,null,null,null,null,"immer ausblenden"]
[null,null,null,null,null,null,null,null,null,null,null,null,null,{"$f":"'2. Daten GuV'!G9","v":"IST-Daten"}]
[null,null,null,{"$f":"'1. Basisdaten'!C4","v":"Max Mustermann GmbH"},null,null,"Zuordnung Tätigkeit in %",null,null,null,null,null,null,{"$f":"'2. Daten GuV'!G10","v":2022},null,null,null,null,null,null,null,null,null,null,null,null,null,null,null,"Anwesenheitsstunden \"direkte\"",null,null,null,null,null,"Personal-Einzelkosten",null,null,null,null,null,{"$f":"'4. Umlage Overhead'!E24","v":"Personal-Gemeinkosten"}]
[null,null,null,"Name","Position/Tätigkeit","Lehrling",{"$f":"'1. Basisdaten'!$C$14","v":"Mechanik"},{"$f":"'1. Basisdaten'!$D$14","v":"Karosserie"},{"$f":"'1. Basisdaten'!$E$14","v":"Lackiererei"},{"$f":"'1. Basisdaten'!$F$14","v":"Handel"},"Overhead",null,null,"Brutto-Bezug p.m.","Dienstgeber-aufwand","Wochen-Stunden","Arbeitstage pro Woche","Tage Kranken-stand","Feiertage","Tage Urlaub","Tage Fortbildung/Schule","Anwesen-heitsstunden","Anteil \ndirekte\nStunden","Anteil indirekte Stunden",null,null,null,null,null,"Gesamtunternehmen",{"$f":"G7","v":"Mechanik"},{"$f":"H7","v":"Karosserie"},{"$f":"I7","v":"Lackiererei"},{"$f":"J7","v":"Handel"},null,"Gesamtunternehmen",{"$f":"G7","v":"Mechanik"},{"$f":"H7","v":"Karosserie"},{"$f":"I7","v":"Lackiererei"},{"$f":"J7","v":"Handel"},null,"Gesamtunternehmen",{"$f":"G7","v":"Mechanik"},{"$f":"H7","v":"Karosserie"},{"$f":"I7","v":"Lackiererei"},{"$f":"J7","v":"Handel"},{"$f":"K7","v":"Overhead"},null,"Check DGA",null,{"$f":"'1. Basisdaten'!$C$14","v":"Mechanik"},{"$f":"'1. Basisdaten'!$D$14","v":"Karosserie"},{"$f":"'1. Basisdaten'!$E$14","v":"Lackiererei"},{"$f":"'1. Basisdaten'!$F$14","v":"Handel"}]
[null,null,null,"TOTAL",null,null,null,null,null,null,null,null,null,null,{"$f":"SUM(O9:O39)","v":0},null,null,null,null,null,null,{"$f":"SUM(V9:V39)","v":52890},null,null,null,null,null,null,null,{"$f":"SUM(AD9:AD39)","v":0},{"$f":"SUM(AE9:AE39)","v":0},{"$f":"SUM(AF9:AF39)","v":0},{"$f":"SUM(AG9:AG39)","v":0},{"$f":"SUM(AH9:AH39)","v":0},null,{"$f":"SUM(AJ9:AJ39)","v":0},{"$f":"SUM(AK9:AK39)","v":0},{"$f":"SUM(AL9:AL39)","v":0},{"$f":"SUM(AM9:AM39)","v":0},{"$f":"SUM(AN9:AN39)","v":0},null,{"$f":"SUM(AP9:AP39)","v":0},0,0,0,0,0,null,{"$f":"O8-AJ8-AP8","v":0}]
[{"$f":"IF(OR('1. Basisdaten'!$C$6=DropDowns!$B$6,'1. Basisdaten'!$C$6=DropDowns!$B$7),0,1)","v":1},null,null,"Unternehmer",null,"nein",null,null,null,null,{"$f":"1-SUM(G9:J9)","v":1},null,null,{"$f":"O9/12","v":0},{"$f":"IF(OR('1. Basisdaten'!$C$6=DropDowns!$B$6,'1. Basisdaten'!$C$6=DropDowns!$B$7),0,('2. Daten GuV'!F24+'2. Daten GuV'!G24)/(1-DropDowns!$C$11)*A9)","v":0},40,5,10,10,25,{"$f":"IF(F9=\"ja\",DropDowns!$C$22*'3. Daten Mitarbeiter'!Q9,0)","v":0},{"$f":"P9*(52-SUM(R9:U9)/Q9)*A9","v":1720},0,{"$f":"1-W9","v":1},null,null,null,null,null,{"$f":"V9*W9","v":0},{"$f":"$V9*G9*$W9","v":0},0,0,0,null,{"$f":"$O9*$W9","v":0},{"$f":"$O9*$W9*G9","v":0},0,0,0,null,{"$f":"$O9*X9","v":0},{"$f":"G9*$O9*$X9","v":0},0,0,0,0,null,0]
[1,null,null,"Mitarbeiter 1",null,null,null,null,null,null,{"$f":"1-SUM(G10:J10)","v":1},null,null,0,0,40,5,10,10,25,{"$f":"IF(F10=\"ja\",DropDowns!$C$22*'3. Daten Mitarbeiter'!Q10,0)","v":0},{"$f":"P10*(52-SUM(R10:U10)/Q10)","v":1720},0,{"$f":"1-W10","v":1},null,null,null,null,null,{"$f":"V10*W10","v":0},0,0,0,0,null,{"$f":"$O10*$W10","v":0},0,0,0,0,null,{"$f":"$O10*X10","v":0},0,0,0,0,0,null,0,null,null,null,null,0.5]
[1,null,null,"Mitarbeiter 2",null,null,null,null,null,null,1,null,null,0,0,40,5,10,10,25,{"$f":"IF(F11=\"ja\",DropDowns!$C$22*'3. Daten Mitarbeiter'!Q11,0)","v":0},{"$f":"P11*(52-SUM(R11:U11)/Q11)","v":1720},0,1,null,null,null,null,null,{"$f":"V11*W11","v":0},{"$f":"$V11*G11*$W11","v":0},{"$f":"$V11*H11*$W11","v":0},{"$f":"$V11*I11*$W11","v":0},{"$f":"$V11*J11*$W11","v":0},null,{"$f":"$O11*$W11","v":0},{"$f":"$O11*$W11*G11","v":0},{"$f":"$O11*$W11*H11","v":0},{"$f":"$O11*$W11*I11","v":0},{"$f":"$O11*$W11*J11","v":0},null,{"$f":"$O11*X11","v":0},{"$f":"G11*$O11*$X11","v":0},{"$f":"H11*$O11*$X11","v":0},{"$f":"I11*$O11*$X11","v":0},{"$f":"J11*$O11*$X11","v":0},{"$f":"K11*$O11*$X11","v":0},null,0]
[1,null,null,"Mitarbeiter 3",null,null,null,null,null,null,1,null,null,0,0,40,5,10,10,25,{"$f":"IF(F12=\"ja\",DropDowns!$C$22*'3. Daten Mitarbeiter'!Q12,0)","v":0},1720,0,1,null,null,null,null,null,0,0,0,0,0,null,0,0,0,0,0,null,0,0,0,0,0,0,null,0,null,null,null,null,0.2]
[1,null,null,"Mitarbeiter 4",null,null,null,null,null,null,1,null,null,0,0,40,5,10,10,25,{"$f":"IF(F13=\"ja\",DropDowns!$C$22*'3. Daten Mitarbeiter'!Q13,0)","v":0},1720,0,1,null,null,null,null,null,0,0,0,0,0,null,0,0,0,0,0,null,0,0,0,0,0,0,null,0]
[1,null,null,"Mitarbeiter 5",null,null,null,null,null,null,1,null,null,0,0,40,5,10,10,25,{"$f":"IF(F14=\"ja\",DropDowns!$C$22*'3. Daten Mitarbeiter'!Q14,0)","v":0},1720,0,1,null,null,null,null,null,0,0,0,0,0,null,0,0,0,0,0,null,0,0,0,0,0,0,null,0,null,0.8,0.2]
[1,null,null,"Mitarbeiter 6",null,null,null,null,null,null,1,null,null,0,0,40,5,10,10,25,{"$f":"IF(F15=\"ja\",DropDowns!$C$22*'3. Daten Mitarbeiter'!Q15,0)","v":0},1720,0,1,null,null,null,null,null,0,0,0,0,0,null,0,0,0,0,0,null,0,0,0,0,0,0,null,0,null,null,1]
[1,null,null,"Mitarbeiter 7",null,null,null,null,null,null,1,null,null,0,0,40,5,10,10,25,{"$f":"IF(F16=\"ja\",DropDowns!$C$22*'3. Daten Mitarbeiter'!Q16,0)","v":0},1720,0,1,null,null,null,null,null,0,0,0,0,0,null,0,0,0,0,0,null,0,0,0,0,0,0,null,0,null,null,1]
[1,null,null,"Mitarbeiter 8",null,null,null,null,null,null,1,null,null,0,0,40,5,10,10,25,{"$f":"IF(F17=\"ja\",DropDowns!$C$22*'3. Daten Mitarbeiter'!Q17,0)","v":0},1720,0,1,null,null,null,null,null,0,0,0,0,0,null,0,0,0,0,0,null,0,0,0,0,0,0,null,0,null,null,1]
[1,null,null,"Mitarbeiter 9",null,null,null,null,null,null,1,null,null,0,0,40,5,10,10,25,{"$f":"IF(F18=\"ja\",DropDowns!$C$22*'3. Daten Mitarbeiter'!Q18,0)","v":0},1720,0,1,null,null,null,null,null,0,0,0,0,0,null,0,0,0,0,0,null,0,0,0,0,0,0,null,0,null,null,1]
[1,null,null,"Mitarbeiter 10",null,null,null,null,null,null,1,null,null,{"$f":"O19/18.5","v":0},0,30,5,10,10,25,{"$f":"IF(F19=\"ja\",DropDowns!$C$22*'3. Daten Mitarbeiter'!Q19,0)","v":0},1290,0,1,null,null,null,null,null,0,0,0,0,0,null,0,0,0,0,0,null,0,0,0,0,0,0,null,0,null,1]
[1,null,null,"Mitarbeiter 11",null,null,null,null,null,null,1,null,null,0,0,40,5,10,10,25,{"$f":"IF(F20=\"ja\",DropDowns!$C$22*'3. Daten Mitarbeiter'!Q20,0)","v":0},1720,0,1,null,null,null,null,null,0,0,0,0,0,null,0,0,0,0,0,null,0,0,0,0,0,0,null,0,null,1]
[1,null,null,"Mitarbeiter 12",null,null,null,null,null,null,1,null,null,0,0,40,5,10,10,25,{"$f":"IF(F21=\"ja\",DropDowns!$C$22*'3. Daten Mitarbeiter'!Q21,0)","v":0},1720,0,1,null,null,null,null,null,0,0,0,0,0,null,0,0,0,0,0,null,0,0,0,0,0,0,null,0,null,1]
[1,null,null,"Mitarbeiter 13",null,null,null,null,null,null,1,null,null,0,0,40,5,10,10,25,{"$f":"IF(F22=\"ja\",DropDowns!$C$22*'3. Daten Mitarbeiter'!Q22,0)","v":0},1720,0,1,null,null,null,null,null,0,0,0,0,0,null,0,0,0,0,0,null,0,0,0,0,0,0,null,0,null,1]
[1,null,null,"Mitarbeiter 14",null,null,null,null,null,null,1,null,null,0,0,40,5,10,10,25,{"$f":"IF(F23=\"ja\",DropDowns!$C$22*'3. Daten Mitarbeiter'!Q23,0)","v":0},1720,0,1,null,null,null,null,null,0,0,0,0,0,null,0,0,0,0,0,null,0,0,0,0,0,0,null,0,null,0.8,0.2]
[1,null,null,"Mitarbeiter 15",null,null,null,null,null,null,1,null,null,0,0,40,5,10,10,25,{"$f":"IF(F24=\"ja\",DropDowns!$C$22*'3. Daten Mitarbeiter'!Q24,0)","v":0},1720,0,1,null,null,null,null,null,0,0,0,0,0,null,0,0,0,0,0,null,0,0,0,0,0,0,null,0,null,1]
[1,null,null,"Mitarbeiter 16",null,null,null,null,null,null,1,null,null,0,0,40,5,10,10,25,{"$f":"IF(F25=\"ja\",DropDowns!$C$22*'3. Daten Mitarbeiter'!Q25,0)","v":0},1720,0,1,null,null,null,null,null,0,0,0,0,0,null,0,0,0,0,0,null,0,0,0,0,0,0,null,0,null,0.7,0.3]
[1,null,null,"Mitarbeiter 17",null,null,null,null,null,null,1,null,null,0,0,40,5,10,10,25,{"$f":"IF(F26=\"ja\",DropDowns!$C$22*'3. Daten Mitarbeiter'!Q26,0)","v":0},1720,0,1,null,null,null,null,null,0,0,0,0,0,null,0,0,0,0,0,null,0,0,0,0,0,0,null,0,null,1]
[1,null,null,"Mitarbeiter 18",null,null,null,null,null,null,1,null,null,0,0,40,5,10,10,25,{"$f":"IF(F27=\"ja\",DropDowns!$C$22*'3. Daten Mitarbeiter'!Q27,0)","v":0},1720,0,1,null,null,null,null,null,0,0,0,0,0,null,0,0,0,0,0,null,0,0,0,0,0,0,null,0,null,1]
[1,null,null,"Mitarbeiter 19",null,null,null,null,null,null,1,null,null,0,0,40,5,10,10,25,{"$f":"IF(F28=\"ja\",DropDowns!$C$22*'3. Daten Mitarbeiter'!Q28,0)","v":0},1720,0,1,null,null,null,null,null,0,0,0,0,0,null,0,0,0,0,0,null,0,0,0,0,0,0,null,0,null,1]
[1,null,null,"Mitarbeiter 20",null,null,null,null,null,null,1,null,null,0,0,40,5,10,10,25,{"$f":"IF(F29=\"ja\",DropDowns!$C$22*'3. Daten Mitarbeiter'!Q29,0)","v":0},1720,0,1,null,null,null,null,null,0,0,0,0,0,null,0,0,0,0,0,null,0,0,0,0,0,0,null,0,null,1]
[1,null,null,"Mitarbeiter 21",null,null,null,null,null,null,1,null,null,0,0,40,5,10,10,25,{"$f":"IF(F30=\"ja\",DropDowns!$C$22*'3. Daten Mitarbeiter'!Q30,0)","v":0},1720,0,1,null,null,null,null,null,0,0,0,0,0,null,0,0,0,0,0,null,0,0,0,0,0,0,null,0]
[1,null,null,"Mitarbeiter 22",null,null,null,null,null,null,1,null,null,0,0,40,5,10,10,25,{"$f":"IF(F31=\"ja\",DropDowns!$C$22*'3. Daten Mitarbeiter'!Q31,0)","v":0},1720,0,1,null,null,null,null,null,0,0,0,0,0,null,0,0,0,0,0,null,0,0,0,0,0,0,null,0]
[1,null,null,"Mitarbeiter 23",null,null,null,null,null,null,1,null,null,0,0,40,5,10,10,25,{"$f":"IF(F32=\"ja\",DropDowns!$C$22*'3. Daten Mitarbeiter'!Q32,0)","v":0},1720,0,1,null,null,null,null,null,0,0,0,0,0,null,0,0,0,0,0,null,0,0,0,0,0,0,null,0]
[1,null,null,"Mitarbeiter 24",null,null,null,null,null,null,1,null,null,0,0,40,5,10,10,25,{"$f":"IF(F33=\"ja\",DropDowns!$C$22*'3. Daten Mitarbeiter'!Q33,0)","v":0},1720,0,1,null,null,null,null,null,0,0,0,0,0,null,0,0,0,0,0,null,0,0,0,0,0,0,null,0]
[1,null,null,"Mitarbeiter 25",null,null,null,null,null,null,1,null,null,0,0,40,5,10,10,25,{"$f":"IF(F34=\"ja\",DropDowns!$C$22*'3. Daten Mitarbeiter'!Q34,0)","v":0},1720,0,1,null,null,null,null,null,0,0,0,0,0,null,0,0,0,0,0,null,0,0,0,0,0,0,null,0]
[1,null,null,"Mitarbeiter 26",null,null,null,null,null,null,1,null,null,0,0,40,5,10,10,25,{"$f":"IF(F35=\"ja\",DropDowns!$C$22*'3. Daten Mitarbeiter'!Q35,0)","v":0},1720,0,1,null,null,null,null,null,0,0,0,0,0,null,0,0,0,0,0,null,0,0,0,0,0,0,null,0]
[1,null,null,"Mitarbeiter 27",null,null,null,null,null,null,1,null,null,0,0,40,5,10,10,25,{"$f":"IF(F36=\"ja\",DropDowns!$C$22*'3. Daten Mitarbeiter'!Q36,0)","v":0},1720,0,1,null,null,null,null,null,0,0,0,0,0,null,0,0,0,0,0,null,0,0,0,0,0,0,null,0]
[1,null,null,"Mitarbeiter 28",null,null,null,null,null,null,1,null,null,0,0,40,5,10,10,25,{"$f":"IF(F37=\"ja\",DropDowns!$C$22*'3. Daten Mitarbeiter'!Q37,0)","v":0},1720,0,1,null,null,null,null,null,0,0,0,0,0,null,0,0,0,0,0,null,0,0,0,0,0,0,null,0]
[1,null,null,"Mitarbeiter 29",null,null,null,null,null,null,1,null,null,0,0,40,5,10,10,25,{"$f":"IF(F38=\"ja\",DropDowns!$C$22*'3. Daten Mitarbeiter'!Q38,0)","v":0},1720,0,1,null,null,null,null,null,0,0,0,0,0,null,0,0,0,0,0,null,0,0,0,0,0,0,null,0]
[1,null,null,"Mitarbeiter 30",null,null,null,null,null,null,1,null,null,0,0,40,5,10,10,25,{"$f":"IF(F39=\"ja\",DropDowns!$C$22*'3. Daten Mitarbeiter'!Q39,0)","v":0},1720,0,1,null,null,null,null,null,0,0,0,0,0,null,0,0,0,0,0,null,0,0,0,0,0,0,null,0]
[]
[null,null,null,null,null,null,null,null,null,null,null,null,null,null,null,null,null,null,null,null,null,null,null,null,null,null,null,null,"h-Satz",{"$f":"'1. Basisdaten'!C22","v":120},{"$f":"'4. Umlage Overhead'!H9","v":120},{"$f":"'4. Umlage Overhead'!I9","v":165},{"$f":"'4. Umlage Overhead'!J9","v":0},{"$f":"'4. Umlage Overhead'!K9","v":0}]
[null,null,null,"Anmerkungen & Definitionen:",null,null,null,null,null,null,null,null,null,null,null,null,null,null,null,null,null,null,null,null,null,null,null,null,null,{"$f":"IF('1. Basisdaten'!$C$12=DropDowns!$D$3,'3. Daten Mitarbeiter'!AD41*'3. Daten Mitarbeiter'!AD$8,SUM(AE42:AH42))","v":0},{"$f":"AE8*AE41","v":0},{"$f":"AF8*AF41","v":0},{"$f":"AG8*AG41","v":0},{"$f":"AH8*AH41","v":0}]
[null,null,null,null,null,null,null,null,null,null,null,null,null,null,null,null,null,null,null,null,null,null,null,null,null,null,null,{"$f":"'2. Daten GuV'!F26","v":0.3},"Anteil Mat",{"$f":"IF('1. Basisdaten'!$C$12=DropDowns!$D$3,AD$42/(1-$AB$43-$AB$44)*$AB43,SUM(AE43:AH43))","v":0},{"$f":"AE$42/(1-$AB$43-$AB$44)*$AB43","v":0},{"$f":"AF$42/(1-$AB$43-$AB$44)*$AB43","v":0},0,0]
[null,null,null,"Brutto-Bezug p.m./Dienstgeberaufwand:","Der Brutto-Bezug p.m. oder der Dienstgeberaufwand können wechselseitig eingegeben werden. Bei Eingabe des Bruttobezuges p.m. wird der Dienstgeberaufwand pro Jahr - bei Eingabe des Dienstgeberaufwandes pro Jahr wird der Bruttobezug p.m. automatisch errechnet. Da es sich um eine Näherungsweise Berechnung handelt, können die berechneten Werte gegenüber einer exakten Berechnung leicht abweichen. Die Stundensatz-Kalkulation verwendet den Dienstgeberaufwand pro Jahr - für ein möglichst exakte Berechnung daher diesen Wert eintragen.",null,null,null,null,null,null,null,null,null,null,null,null,null,null,null,null,null,null,null,null,null,null,{"$f":"'2. Daten GuV'!F27","v":0.1},"Anteil FL",{"$f":"IF('1. Basisdaten'!$C$12=DropDowns!$D$3,AD$42/(1-$AB$43-$AB$44)*$AB44,SUM(AE44:AH44))","v":0},{"$f":"AE$42/(1-$AB$43-$AB$44)*$AB44","v":0},0,0,0]
[null,null,null,"Brutto-Bezug p.m.:","monatlicher Bruttobezug inkl. durchschnittlicher Zulagen, Prämien u.ä."]
[null,null,null,null,"Bei Eingabe des Bruttobezuges erfolgt die Berechnung des Dienstgeberaufwandes pro Jahr und umgekehrt."]
[null,null,null,"Dienstgeberaufwand:","Gesamtkosten des Dienstnehmers pro Jahr. Diese Daten erhalten Sie von der Lohnverrechnung (beispielsweise über die Dienstnehmerlohnkonten).",null,null,null,null,null,null,null,null,null,null,null,null,null,null,null,null,null,null,null,null,null,null,null,null,{"$f":"SUM(AD42:AD44)","v":0},{"$f":"SUM(AE42:AE44)","v":0},{"$f":"SUM(AF42:AF44)","v":0},{"$f":"SUM(AG42:AG44)","v":0},{"$f":"SUM(AH42:AH44)","v":0}]
[null,null,null,null,"Bei Eingabe des Dienstgeberaufwandes pro Jahr erfolgt die Berechnung des Bruttobezuges pro Monat und umgekehrt."]
[null,null,null,"Wochenstunden:","wöchentliche Normalarbeitszeit (inkl. allfällig fix vereinbarter Überstunden)"]
[null,null,null,"Anteil direkte Stunden:","Anteil jener Stunden an der Gesamtarbeitszeit, die der Dienstnehmer potenziell für die Erbringung von verrechenbaren Leistungen zur Verfügung steht.",null,null,null,null,null,null,null,null,null,null,null,null,null,null,null,null,null,null,null,null,null,null,null,"L&G",{"$f":"IF('1. Basisdaten'!$C$12=DropDowns!$D$3,SUMPRODUCT($O$9:$O$39,$W$9:$W$39),SUM(AE50:AH50))","v":0},{"$f":"SUMPRODUCT(G$9:G$39,$O$9:$O$39)","v":0},{"$f":"SUMPRODUCT(H$9:H$39,$O$9:$O$39)","v":0},{"$f":"SUMPRODUCT(I$9:I$39,$O$9:$O$39)","v":0},{"$f":"SUMPRODUCT(J$9:J$39,$O$9:$O$39)","v":0}]
[null,null,null,null,"Beispiel 1 \"Bürokraft\": erbring üblicherweise keine verrechenbaren Stunden, weshalb der Wert 0% einzugeben ist."]
[null,null,null,null,"Beispiel 2 \"Mechaniker\": erbringt in der Regel ausschließlich potenziell verrechenbare Leistungen, weshalb der Wert 100% einzugeben ist."]
[null,null,null,null,"Beispiel 3 \"Mechaniker-Meister\": erbringt z.B. im Ausmaß von 35% verrechenbare Leistungen, womit der Wert 35% einzugeben ist"]
[]
[]
[null,null,null,null,null,null,null,null,null,null,null,null,null,"Steuerungstabelle LNK/brutto-DGA"]
[null,null,null,null,null,null,null,null,null,null,null,null,null,"wechselseitige Eingabe Brutto p.m./DGA p.a."]
[null,null,null,null,null,null,null,null,null,null,null,null,null,"Automatisierungen/Vereinfachungen:"]
[null,null,null,null,null,null,null,null,null,null,null,null,null,".) Kennzeichnung Lehrlinge -> automatische Berücksichtigung Schul-Wochen"]
[null,null,null,null,null,null,null,null,null,null,null,null,null,".) Wahlweise Eingabe Bruttobezug p.m. oder Dienstgeberaufwand p.a."]

{"sheet":"4. Umlage Overhead","index":4,"n_rows":36,"n_cols":27,"rows_kept":36,"cut":false,"hidden":false,"merged":[[34,13,35,23]]}
["1 = ausgeblendet",null,{"$f":"'1. Basisdaten'!C12","v":"Gesamtunternehmen"},null,null,{"$f":"IF('1. Basisdaten'!$C$12=DropDowns!$F$3,\"ja\",\"nein\")","v":"ja"},{"$f":"IF('1. Basisdaten'!$C$12=DropDowns!$F$4,\"ja\",\"nein\")","v":"nein"},{"$f":"IF('1. Basisdaten'!$C$12=DropDowns!$F$3,\"nein\",'1. Basisdaten'!C15)","v":"nein"},{"$f":"IF('1. Basisdaten'!$C$12=DropDowns!$F$3,\"nein\",'1. Basisdaten'!D15)","v":"nein"},{"$f":"IF('1. Basisdaten'!$C$12=DropDowns!$F$3,\"nein\",'1. Basisdaten'!E15)","v":"nein"},{"$f":"IF('1. Basisdaten'!$C$12=DropDowns!$F$3,\"nein\",'1. Basisdaten'!F15)","v":"nein"},{"$f":"IF('1. Basisdaten'!$C$12=DropDowns!$F$3,\"nein\",\"ja\")","v":"nein"}]
[]
[null,null,"Umlage Overhead-Kosten"]
[]
[null,null,null,{"$f":"IF('1. Basisdaten'!$C$12=DropDowns!$D$3,\"Keine Umlage(n) notwendig -> Weiter zu Ergebnissen\",\"\")","v":"Keine Umlage(n) notwendig -> Weiter zu Ergebnissen"}]
[]
[null,null,null,null,null,"Gesamtunternehmen","Gesamtunternehmen",{"$f":"'2. Daten GuV'!H11","v":"Mechanik"},{"$f":"'2. Daten GuV'!I11","v":"Karosserie"},{"$f":"'2. Daten GuV'!J11","v":"Lackiererei"},{"$f":"'2. Daten GuV'!K11","v":"Handel"},"Overhead",null,"Informationen",null,null,null,null,null,null,null,null,null,null,null,null,"Check GU"]
[1,null,null,null,"direkte Mannstunden (Anwesenheit)",{"$f":"'3. Daten Mitarbeiter'!$AD$8","v":0},{"$f":"'3. Daten Mitarbeiter'!$AD$8","v":0},{"$f":"SUMPRODUCT('3. Daten Mitarbeiter'!G$9:G$38,'3. Daten Mitarbeiter'!$V$9:$V$38,'3. Daten Mitarbeiter'!$W$9:$W$38)","v":0},{"$f":"SUMPRODUCT('3. Daten Mitarbeiter'!H$9:H$38,'3. Daten Mitarbeiter'!$V$9:$V$38,'3. Daten Mitarbeiter'!$W$9:$W$38)","v":0},{"$f":"SUMPRODUCT('3. Daten Mitarbeiter'!I$9:I$38,'3. Daten Mitarbeiter'!$V$9:$V$38,'3. Daten Mitarbeiter'!$W$9:$W$38)","v":0},{"$f":"SUMPRODUCT('3. Daten Mitarbeiter'!J$9:J$38,'3. Daten Mitarbeiter'!$V$9:$V$38,'3. Daten Mitarbeiter'!$W$9:$W$38)","v":0}]
[1,null,null,null,"Regie-Stundensatz*",{"$f":"'1. Basisdaten'!$C$22","v":120},null,{"$f":"'1. Basisdaten'!C17","v":120},{"$f":"'1. Basisdaten'!D17","v":165},{"$f":"'1. Basisdaten'!E17","v":0},{"$f":"'1. Basisdaten'!F17","v":0}]
[1,null,null,null,"ø Aufschlag Material*",{"$f":"'2. Daten GuV'!F26","v":0.3},{"$f":"IFERROR(G12/'2. Daten GuV'!G14-1,0)","v":0},{"$f":"'2. Daten GuV'!H26","v":0.3},{"$f":"'2. Daten GuV'!I26","v":0.3},{"$f":"'2. Daten GuV'!J26","v":0.3},{"$f":"'2. Daten GuV'!K26","v":0.15}]
[1,null,null,null,"ø Aufschlag bezogene Leistungen*",{"$f":"'2. Daten GuV'!F27","v":0.1},{"$f":"IFERROR(G13/'2. Daten GuV'!G15-1,0)","v":0},{"$f":"'2. Daten GuV'!H27","v":0.1},{"$f":"'2. Daten GuV'!I27","v":0.1},{"$f":"'2. Daten GuV'!J27","v":0.1},{"$f":"'2. Daten GuV'!K27","v":0.1}]
[1,null,null,null,"kalk. Materialerlöse",{"$f":"IFERROR('2. Daten GuV'!F14*(1+F10),0)","v":0},{"$f":"SUM(H12:K12)","v":0},{"$f":"IFERROR('2. Daten GuV'!H14*(1+H10),0)","v":0},{"$f":"IFERROR('2. Daten GuV'!I14*(1+I10),0)","v":0},{"$f":"IFERROR('2. Daten GuV'!J14*(1+J10),0)","v":0},{"$f":"IFERROR('2. Daten GuV'!K14*(1+K10),0)","v":0}]
[1,null,null,null,"kalk. Fremdleistungserlöse",{"$f":"IFERROR('2. Daten GuV'!F15*(1+F11),0)","v":0},{"$f":"SUM(H13:K13)","v":0},{"$f":"IFERROR('2. Daten GuV'!H15*(1+H11),0)","v":0},{"$f":"IFERROR('2. Daten GuV'!I15*(1+I11),0)","v":0},{"$f":"IFERROR('2. Daten GuV'!J15*(1+J11),0)","v":0},{"$f":"IFERROR('2. Daten GuV'!K15*(1+K11),0)","v":0}]
[1,null,null,null,"Kalk. Leistungserlöse",{"$f":"'2. Daten GuV'!F13-F13-F12","v":0},{"$f":"SUM(H14:K14)","v":0},{"$f":"'2. Daten GuV'!H13-H13-H12","v":0},{"$f":"'2. Daten GuV'!I13-I13-I12","v":0},{"$f":"'2. Daten GuV'!J13-J13-J12","v":0},{"$f":"'2. Daten GuV'!K13-K13-K12","v":0}]
[1,null,null,null,"verrechnete Leistungsstunden (zu Regie-h-Satz)",{"$f":"IFERROR(F14/F9,0)","v":0},{"$f":"SUM(H15:K15)","v":0},{"$f":"IFERROR(H14/H9,0)","v":0},{"$f":"IFERROR(I14/I9,0)","v":0},{"$f":"IFERROR(J14/J9,0)","v":0},{"$f":"IFERROR(K14/K9,0)","v":0}]
[1,null,null,null,"IST Verrechnungsgrad",{"$f":"IFERROR(F15/F8,\"n.b.\")","v":"n.b."},"n.b.","n.b.","n.b.","n.b.","n.b."]
[1,null,null,null," * jeweils der Periode der IST-Dateneingabe"]
[1]
[1,null,null,null,"Material-Einzelkosten",{"$f":"SUM('2. Daten GuV'!F14:F14)","v":0},{"$f":"SUM(H19:L19)","v":0},{"$f":"SUM('2. Daten GuV'!H14:H14)","v":0},{"$f":"SUM('2. Daten GuV'!I14:I14)","v":0},{"$f":"SUM('2. Daten GuV'!J14:J14)","v":0},{"$f":"SUM('2. Daten GuV'!K14:K14)","v":0},null,null,null,null,null,null,null,null,null,null,null,null,null,null,null,{"$f":"'2. Daten GuV'!F14","v":0}]
[1,null,null,null,"Fremdleistungs-Einzelkosten",{"$f":"SUM('2. Daten GuV'!F15:F15)","v":0},{"$f":"SUM(H20:L20)","v":0},{"$f":"SUM('2. Daten GuV'!H15:H15)","v":0},{"$f":"SUM('2. Daten GuV'!I15:I15)","v":0},{"$f":"SUM('2. Daten GuV'!J15:J15)","v":0},{"$f":"SUM('2. Daten GuV'!K15:K15)","v":0},null,null,null,null,null,null,null,null,null,null,null,null,null,null,null,{"$f":"'2. Daten GuV'!F15","v":0}]
[1,null,null,null,"Personal-Einzelkosten",{"$f":"'3. Daten Mitarbeiter'!$AJ$8","v":0},{"$f":"'3. Daten Mitarbeiter'!$AJ$8","v":0},{"$f":"'3. Daten Mitarbeiter'!AK8","v":0},{"$f":"'3. Daten Mitarbeiter'!AL8","v":0},{"$f":"'3. Daten Mitarbeiter'!AM8","v":0},{"$f":"'3. Daten Mitarbeiter'!AN8","v":0}]
[1,null,null,null,"Einzelkosten TOTAL",{"$f":"SUM(F19:F21)","v":0},{"$f":"SUM(H22:L22)","v":0},{"$f":"SUM(H19:H21)","v":0},{"$f":"SUM(I19:I21)","v":0},{"$f":"SUM(J19:J21)","v":0},{"$f":"SUM(K19:K21)","v":0}]
[1]
[null,null,null,null,"Personal-Gemeinkosten",{"$f":"'3. Daten Mitarbeiter'!$AP$8","v":0},{"$f":"'3. Daten Mitarbeiter'!$AP$8","v":0},{"$f":"'3. Daten Mitarbeiter'!AQ8","v":0},{"$f":"'3. Daten Mitarbeiter'!AR8","v":0},{"$f":"'3. Daten Mitarbeiter'!AS8","v":0},{"$f":"'3. Daten Mitarbeiter'!AT8","v":0},{"$f":"'3. Daten Mitarbeiter'!AU8","v":0}]
[null,null,null,null,"direkte Gemeinkosten",{"$f":"'2. Daten GuV'!$F$40","v":0},{"$f":"'2. Daten GuV'!$G$40","v":0},{"$f":"'2. Daten GuV'!H40","v":0},{"$f":"'2. Daten GuV'!I40","v":0},{"$f":"'2. Daten GuV'!J40","v":0},{"$f":"'2. Daten GuV'!K40","v":0},{"$f":"'2. Daten GuV'!L40","v":0},null,null,null,null,null,null,null,null,null,null,null,null,null,null,{"$f":"'2. Daten GuV'!F40","v":0}]
[{"$f":"IF($D$5=\"\",\"\",1)","v":1},null,null,null,"Umlage Gemeinkosten \"Overhead\"",0,{"$f":"IF(G1=\"nein\",0,SUM(H26:L26))","v":0},{"$f":"-$L26*H29","v":0},{"$f":"-$L26*I29","v":0},{"$f":"-$L26*J29","v":0},{"$f":"-$L26*K29","v":0},{"$f":"-SUM(L24:L25)","v":0},null,"Allfällige Overhead-Kosten werden gem. dem unten definierten Umlageschlüssel auf die operativ tätigen Profit-Center umgelegt."]
[null,null,null,null,"Gemeinkosten TOTAL",{"$f":"SUM(F24:F26)","v":0},{"$f":"SUM(H27:L27)","v":0},{"$f":"SUM(H24:H26)","v":0},{"$f":"SUM(I24:I26)","v":0},{"$f":"SUM(J24:J26)","v":0},{"$f":"SUM(K24:K26)","v":0},{"$f":"SUM(L24:L26)","v":0}]
[{"$f":"IF($D$5=\"\",\"\",1)","v":1}]
[{"$f":"IF($D$5=\"\",\"\",1)","v":1},null,null,null,"Umlageschlüssel \"nach Einzelkosten\"",null,{"$f":"IF(G1=\"nein\",0,SUM(H29:L29))","v":0},{"$f":"INDEX(H33:H36,MATCH($E$29,$E$33:$E$36,0))","v":0},{"$f":"INDEX(I33:I36,MATCH($E$29,$E$33:$E$36,0))","v":0},{"$f":"INDEX(J33:J36,MATCH($E$29,$E$33:$E$36,0))","v":0},{"$f":"INDEX(K33:K36,MATCH($E$29,$E$33:$E$36,0))","v":0},-1,null,"Umlageschlüssel auswählen"]
[1,null,null,null,null,null,{"$f":"IF(G26<>0,\"FEHLER: ausgewählte Umlage geht sich nicht auf 100% aus! Umlageschlüssel ändern/anpassen!\",\"\")","v":""}]
[1,null,null,"Umlageschlüssel f. Gemeinkosten Overhead:"]
[1]
[1,null,null,null,"Umlageschlüssel \"nach Einzelkosten\"",null,{"$f":"SUM(H33:K33)","v":0},{"$f":"IFERROR((H22/SUM($H$22:$K$22)),0)","v":0},{"$f":"IFERROR((I22/SUM($H$22:$K$22)),0)","v":0},0,0,null,null,"Umlageschlüssel für Overhead-Kosten berechnet nach Einzelkosten der einzelnen Profit-Center"]
[1,null,null,null,"Umlageschlüssel \"nach Umsatz\"",null,{"$f":"SUM(H34:K34)","v":{"$error":"#DIV/0!"}},{"$f":"SUM(H12:H14)/SUM($G$12:$G$14)","v":{"$error":"#DIV/0!"}},{"$f":"SUM(I12:I14)/SUM($G$12:$G$14)","v":{"$error":"#DIV/0!"}},{"$error":"#DIV/0!"},{"$error":"#DIV/0!"},null,null,"Umlageschlüssel für Overhead-Kosten berechnet nach Umsatzerlösen der einzelnen Profit-Center"]
[1,null,null,null,"Umlageschlüssel \"direkte Eingabe 1\"",null,null,null,null,null,null,null,null,"Die Umlageschlüssel \"direkte Eingabe 1 und 2\" können individuell definiert werden."]
[1,null,null,null,"Umlageschlüssel \"direkte Eingabe 2\""]

{"sheet":"5. Ergebnisse","index":5,"n_rows":52,"n_cols":28,"rows_kept":52,"cut":false,"hidden":false,"merged":[[10,13,11,23]]}
["\"0\" wenn ausgeblendet",null,null,null,null,{"$f":"IF('1. Basisdaten'!$C$12=DropDowns!$F$3,\"ja\",\"nein\")","v":"ja"},{"$f":"IF('1. Basisdaten'!$C$12=DropDowns!$F$4,\"ja\",\"nein\")","v":"nein"},{"$f":"IF('1. Basisdaten'!$C$12=DropDowns!$F$3,\"nein\",'1. Basisdaten'!C15)","v":"nein"},{"$f":"IF('1. Basisdaten'!$C$12=DropDowns!$F$3,\"nein\",'1. Basisdaten'!D15)","v":"nein"},{"$f":"IF('1. Basisdaten'!$C$12=DropDowns!$F$3,\"nein\",'1. Basisdaten'!E15)","v":"nein"},{"$f":"IF('1. Basisdaten'!$C$12=DropDowns!$F$3,\"nein\",'1. Basisdaten'!F15)","v":"nein"}]
[]
[]
[]
[null,null,"Stundensatz bei Verrechnungsgrad, Rabatte & Wagnis/Gewinn-Zuschlag"]
[]
[]
[]
[null,null,null,null,{"$f":"'1. Basisdaten'!C4","v":"Max Mustermann GmbH"},"Gesamtunternehmen","Gesamtunternehmen",{"$f":"'1. Basisdaten'!$C$14","v":"Mechanik"},{"$f":"'1. Basisdaten'!$D$14","v":"Karosserie"},{"$f":"'1. Basisdaten'!$E$14","v":"Lackiererei"},{"$f":"'1. Basisdaten'!$F$14","v":"Handel"},null,null,"Informationen",null,null,null,null,null,null,null,null,null,null,null,null,"Check GU"]
[]
[null,null,null,null,"Verrechnungsgrad Basis erfasster Daten:",{"$f":"'4. Umlage Overhead'!F16","v":"n.b."},null,{"$f":"'4. Umlage Overhead'!H16","v":"n.b."},{"$f":"'4. Umlage Overhead'!I16","v":"n.b."},{"$f":"'4. Umlage Overhead'!J16","v":"n.b."},{"$f":"'4. Umlage Overhead'!K16","v":"n.b."},null,null,"Der Verrechnungsgrad ist das Verhälntis zwischen den zum Plan-Stundensatz verrechneten Stunden und den Anwesenheitsstunden der direkten Mitarbeiter. Anzustreben wäre eine Bandbreite von 75% bis 85%. Werte über 85% sind nur in Ausnahmefällen realisierbar."]
[null,null,null,null,"PLAN Verrechnungsgrad",0.8,null,0.8,0.8,0.8,0.8]
[]
[null,null,null,null,"Rabatte & Erlösschmälerungen",0.05,{"$f":"IFERROR(G40/G41,0)","v":0},0.05,0.05,0.05,0.05,null,null,"durchschnittliche oder geplante Rabatte/Erlösschmälerungen in % vom Verkaufspreis netto eintragen"]
[]
[null,null,null,null,"Wagnis/Gewinn-Zuschlag",0.1,{"$f":"IFERROR(G38/G37,0)","v":0},0.1,0.1,0.1,0.1,null,null,"Zuschlag in % auf die Selbstkosten für den über den Unternehmerlohn samt Abgaben hinausgehenden Gewinn (vor Steuern).",null,null,null,null,null,null,null,null,null,null,null,null,null,"Anmerkung f. allfällige Änderung/Verbesserung: \"als absolute Zielgröße definieren, womit Zielzuschlag dann berechnet wird\""]
[null,null,null,null,"Kalk. Gewinn vor Steuern bei Ziel-Parametern",{"$f":"$F$45","v":0},{"$f":"$G$45","v":0},{"$f":"H45","v":0},{"$f":"I45","v":0},{"$f":"J45","v":"n.b."},{"$f":"K45","v":"n.b."},null,null,"Gewinn vor Steuern, der über den den Unternehmerlohn samt Abgaben (Sozialversicherungsbeiträge, Einkommensteuer) hinausgeht.",null,null,null,null,null,null,null,null,null,null,null,null,{"$f":"F17-'2. Daten GuV'!F31","v":0}]
[]
["immer ausblenden"]
["immer ausblenden",null,null,null,null,"Gesamtunternehmen","Gesamtunternehmen",{"$f":"'1. Basisdaten'!$C$14","v":"Mechanik"},{"$f":"'1. Basisdaten'!$D$14","v":"Karosserie"},{"$f":"'1. Basisdaten'!$E$14","v":"Lackiererei"},{"$f":"'1. Basisdaten'!$F$14","v":"Handel"}]
["immer ausblenden",null,null,null,"Material-Einzelkosten bei Plan-Produktivität",{"$f":"IFERROR('4. Umlage Overhead'!F19/F$11*F$12,0)","v":0},{"$f":"SUM(H21:K21)","v":0},{"$f":"IFERROR('4. Umlage Overhead'!H19/H$11*H$12,0)","v":0},{"$f":"IFERROR('4. Umlage Overhead'!I19/I$11*I$12,0)","v":0},{"$f":"IFERROR('4. Umlage Overhead'!J19/J$11*J$12,0)","v":0},{"$f":"IFERROR('4. Umlage Overhead'!K19/K$11*K$12,0)","v":0},null,null,"Prämisse: bei steigenden Leistungserlösen erhöht sich Ausstoßmenge und damit auch Materialeinsatz",null,null,null,null,null,null,null,null,null,null,null,null,{"$f":"'2. Daten GuV'!F14","v":0}]
["immer ausblenden",null,null,null,"Fremdleistungs-Einzelkosten bei Plan-Produktivität",{"$f":"IFERROR('4. Umlage Overhead'!F20/F$11*F$12,0)","v":0},0,{"$f":"IFERROR('4. Umlage Overhead'!H20/H$11*H$12,0)","v":0},{"$f":"IFERROR('4. Umlage Overhead'!I20/I$11*I$12,0)","v":0},{"$f":"IFERROR('4. Umlage Overhead'!J20/J$11*J$12,0)","v":0},{"$f":"IFERROR('4. Umlage Overhead'!K20/K$11*K$12,0)","v":0},null,null,null,null,null,null,null,null,null,null,null,null,null,null,null,{"$f":"'2. Daten GuV'!F15","v":0}]
["immer ausblenden",null,null,null,"Personal-Einzelkosten bei Plan-Produktivität",{"$f":"'4. Umlage Overhead'!F21","v":0},0,{"$f":"'4. Umlage Overhead'!H21","v":0},{"$f":"'4. Umlage Overhead'!I21","v":0},{"$f":"'4. Umlage Overhead'!J21","v":0},{"$f":"'4. Umlage Overhead'!K21","v":0}]
["immer ausblenden",null,null,null,"Einzelkosten TOTAL bei Plan-Produktivität",{"$f":"SUM(F21:F23)","v":0},0,{"$f":"SUM(H21:H23)","v":0},{"$f":"SUM(I21:I23)","v":0},{"$f":"SUM(J21:J23)","v":0},{"$f":"SUM(K21:K23)","v":0}]
["immer ausblenden",null,null,null,{"$f":"'4. Umlage Overhead'!E27","v":"Gemeinkosten TOTAL"},{"$f":"'4. Umlage Overhead'!F27","v":0},0,{"$f":"'4. Umlage Overhead'!H27","v":0},{"$f":"'4. Umlage Overhead'!I27","v":0},{"$f":"'4. Umlage Overhead'!J27","v":0},{"$f":"'4. Umlage Overhead'!K27","v":0},null,null,{"$f":"AA25-F25","v":0},null,null,null,null,null,null,null,null,null,null,null,null,{"$f":"'2. Daten GuV'!F16+'2. Daten GuV'!F17+'2. Daten GuV'!F18-'2. Daten GuV'!F19+'2. Daten GuV'!F20+'2. Daten GuV'!F21+'2. Daten GuV'!F24/(1-DropDowns!C11)","v":0}]
["immer ausblenden",null,null,null,"abzgl. Deckungsbeitrag aus Material-Aufschlägen",{"$f":"-F21*'4. Umlage Overhead'!F$10","v":0},0,{"$f":"-H21*'4. Umlage Overhead'!H$10","v":0},{"$f":"-I21*'4. Umlage Overhead'!I$10","v":0},{"$f":"-J21*'4. Umlage Overhead'!J$10","v":0},{"$f":"-K21*'4. Umlage Overhead'!K$10","v":0}]
["immer ausblenden",null,null,null,"abzgl. Deckungsbeitrag aus Fremdleistungs-Aufschlägen",{"$f":"-F22*'4. Umlage Overhead'!F$11","v":0},0,{"$f":"-H22*'4. Umlage Overhead'!H$11","v":0},{"$f":"-I22*'4. Umlage Overhead'!I$11","v":0},{"$f":"-J22*'4. Umlage Overhead'!J$11","v":0},{"$f":"-K22*'4. Umlage Overhead'!K$11","v":0}]
["immer ausblenden",null,null,null,"Gemeinkosten Leistungsdeckung",{"$f":"SUM(F25:F27)","v":0},0,{"$f":"MAX(SUM(H25:H27),0)","v":0},{"$f":"MAX(SUM(I25:I27),0)","v":0},{"$f":"MAX(SUM(J25:J27),0)","v":0},{"$f":"MAX(SUM(K25:K27),0)","v":0}]
["immer ausblenden"]
["immer ausblenden",null,null,null,"PlAN-Rabatte & Erlösschmälerungen",null,{"$f":"SUM(H30:K30)","v":0},{"$f":"IFERROR(H40*H31,0)","v":0},{"$f":"IFERROR(I40*I31,0)","v":0},{"$f":"IFERROR(J40*J31,0)","v":0},{"$f":"IFERROR(K40*K31,0)","v":0}]
["immer ausblenden",null,null,null,"PLAN-verrechenbare Stunden",{"$f":"IFERROR('4. Umlage Overhead'!F8*F12,\"n.b.\")","v":0},{"$f":"SUM(H31:K31)","v":0},{"$f":"IFERROR('4. Umlage Overhead'!H8*H12,\"n.b.\")","v":0},{"$f":"IFERROR('4. Umlage Overhead'!I8*I12,\"n.b.\")","v":0},{"$f":"IFERROR('4. Umlage Overhead'!J8*J12,\"n.b.\")","v":0},{"$f":"IFERROR('4. Umlage Overhead'!K8*K12,\"n.b.\")","v":0}]
["immer ausblenden"]
[]
[null,null,null,null,null,"Gesamtunternehmen","Gesamtunternehmen",{"$f":"'1. Basisdaten'!$C$14","v":"Mechanik"},{"$f":"'1. Basisdaten'!$D$14","v":"Karosserie"},{"$f":"'1. Basisdaten'!$E$14","v":"Lackiererei"},{"$f":"'1. Basisdaten'!$F$14","v":"Handel"}]
[null,null,null,null,"direkte Personalkosten je Stunde",{"$f":"IFERROR(F23/F31,\"n.b.\")","v":"n.b."},"n.b.","n.b.","n.b.","n.b.","n.b.",null,null,"ø Kosten je verrechenbarer Stunde der direkten Mitarbeiter."]
[null,null,null,null,"Gemeinkosten je Stunde",{"$f":"IFERROR(F28/F31,\"n.b.\")","v":"n.b."},"n.b.","n.b.","n.b.","n.b.","n.b.",null,null,"ø Kosten in Euro an Gemeinkosten je verrechenbarer Stunde."]
[null,null,null,null,"Selbstkosten je Stunde",{"$f":"SUM(F35:F36)","v":0},{"$f":"SUM(G35:G36)","v":0},{"$f":"SUM(H35:H36)","v":0},{"$f":"SUM(I35:I36)","v":0},{"$f":"IF(J35=\"n.b.\",\"n.b.\",SUM(J35:J36))","v":"n.b."},{"$f":"IF(K35=\"n.b.\",\"n.b.\",SUM(K35:K36))","v":"n.b."},null,null,"ø Kosten in Euro je verrechenbarer Stunde."]
[null,null,null,null,"Zuschlag Wagnis-Gewinn je Stunde",{"$f":"F37*F16","v":0},{"$f":"IFERROR(G45/G31,\"n.b.\")","v":"n.b."},{"$f":"H37*H16","v":0},{"$f":"I37*I16","v":0},{"$f":"IFERROR(J37*J16,\"n.b.\")","v":"n.b."},{"$f":"IFERROR(K37*K16,\"n.b.\")","v":"n.b."},null,null,"Gewinnzuschlag je verrechenbarer Stunde."]
[null,null,null,null,"Stundensatz rabattiert (nach Schmälerungen)",{"$f":"SUM(F37:F38)","v":0},{"$f":"SUM(G37:G38)","v":0},{"$f":"SUM(H37:H38)","v":0},{"$f":"SUM(I37:I38)","v":0},{"$f":"IF(J37=\"n.b.\",\"n.b.\",SUM(J37:J38))","v":"n.b."},{"$f":"IF(K37=\"n.b.\",\"n.b.\",SUM(K37:K38))","v":"n.b."},null,null,"Soll-Verkaufsstundensatz je verrechenbarer Stunde (nach Gewährung von Rabatten, o.ä.)",null,null,null,null,null,null,null,null,null,null,null,null,{"$f":"'1. Basisdaten'!C22","v":120}]
[null,null,null,null,"Rabatte & Erlösschmälerungen",{"$f":"IFERROR(F39/(1-F14)*F14,\"n.b.\")","v":0},{"$f":"IFERROR(G30/G31,\"n.b.\")","v":"n.b."},{"$f":"IFERROR(H39/(1-H14)*H14,\"n.b.\")","v":0},{"$f":"IFERROR(I39/(1-I14)*I14,\"n.b.\")","v":0},{"$f":"IFERROR(J39/(1-J14)*J14,\"n.b.\")","v":"n.b."},{"$f":"IFERROR(K39/(1-K14)*K14,\"n.b.\")","v":"n.b."},null,null,"ø Rabatte o.ä. je verrechenbarer Stunde."]
[null,null,null,null,"Verkaufs-Stundensatz netto",{"$f":"IF(F39=\"n.b.\",\"n.b.\",SUM(F39:F40))","v":0},0,0,0,"n.b.","n.b.",null,null,"Soll-Verkaufsstundensatz (vor Gewährung von Rabatten, o.ä.) exkl. Umsatzsteuer"]
[null,null,null,0.2,"Umsatzsteuer",{"$f":"IFERROR(F39*0.2,\"n.b.\")","v":0},{"$f":"IFERROR(G41*$D42,\"n.b.\")","v":0},{"$f":"IFERROR(H41*$D42,\"n.b.\")","v":0},{"$f":"IFERROR(I41*$D42,\"n.b.\")","v":0},{"$f":"IFERROR(J41*$D42,\"n.b.\")","v":"n.b."},{"$f":"IFERROR(K41*$D42,\"n.b.\")","v":"n.b."},null,null,"Umsatzsteuer in Euro"]
[null,null,null,null,"Verkaufs-Stundensatz brutto",{"$f":"IF(F41=\"n.b.\",\"n.b.\",SUM(F41:F42))","v":0},0,0,0,"n.b.","n.b.",null,null,"Soll-Verkaufsstundensatz (vor Gewährung von Rabatten, o.ä.) inkl. Umsatzsteuer"]
[]
[null,null,null,null,"Kalk. Gewinn vor Steuern bei Ziel-Parametern",{"$f":"F38*F31","v":0},{"$f":"SUM(H45:K45)","v":0},{"$f":"H38*H31","v":0},{"$f":"I38*I31","v":0},{"$f":"IFERROR(J38*J31,\"n.b.\")","v":"n.b."},{"$f":"IFERROR(K38*K31,\"n.b.\")","v":"n.b."},null,null,"Entspricht dem über den Unternehmerlohn samt Abgaben (Sozialversicherungsbeiträge, Einkommensteuer) hinausgehenden Gewinn vor Steuern."]
[]
[]
[null,null,null,"Stundensatz-Vergleich:"]
[]
[null,null,null,null,"SOLL-Stundensätze",{"$f":"F41","v":0},null,{"$f":"H41","v":0},{"$f":"I41","v":0},{"$f":"J41","v":"n.b."},{"$f":"K41","v":"n.b."},null,null,{"$f":"N41","v":"Soll-Verkaufsstundensatz (vor Gewährung von Rabatten, o.ä.) exkl. Umsatzsteuer"}]
[null,null,null,null,"IST-Stundensätze",{"$f":"'1. Basisdaten'!$C$22","v":120},null,{"$f":"'1. Basisdaten'!$C$17","v":120},{"$f":"'1. Basisdaten'!D17","v":165},{"$f":"'1. Basisdaten'!E17","v":0},{"$f":"'1. Basisdaten'!F17","v":0},null,null,"IST-Verkaufsstundensatz lt. Eingabe in Blatt \"1. Basisdaten\""]
[null,null,null,null,"Anmerkungen",{"$f":"IF(F51<F50,\"IST-Stundensatz erhöhen\",\"o.k.\")","v":"o.k."},null,{"$f":"IF(H50=\"n.b.\",\"\",IF(H51<H50,\"IST-Stundensatz erhöhen\",\"o.k.\"))","v":"o.k."},{"$f":"IF(I50=\"n.b.\",\"\",IF(I51<I50,\"IST-Stundensatz erhöhen\",\"o.k.\"))","v":"o.k."},"",""]

{"sheet":"DropDowns","index":6,"n_rows":22,"n_cols":6,"rows_kept":22,"cut":false,"hidden":true,"merged":[]}
["1. Basisdaten"]
[null,"Rechtsformen","Datenart","Detaillierungsgrad:","PC","Detaillierungsgrad:"]
[null,"Einzelunternehmen","IST-Daten","Gesamtunternehmen","ja","Gesamtunternehmen"]
[null,"OG","PLAN-Daten","Profit-Center-Ebene","nein","Profit-Center-Ebene"]
[null,"KG"]
[null,"GmbH"]
[null,"AG"]
[]
["2. Daten GuV"]
[null,null,"ø Abgabenquote (SVA & Est.)"]
[null,"Unternehmerlohn:",0.45]
[]
["3. Daten Mitarbeiter"]
[]
[null,"Lehrling"]
[null,"ja"]
[null,"nein"]
[]
[]
["4. Daten Mitarbeiter"]
[]
[null,"Lehrlinge Schul-Wochen",10]